fUSD/lending_fUSD_20250520
["ID","MTS","AMOUNT","RATE_DAILY","PERIOD"]
[361718186,1747723837586,-1988.42,0.00012,2]
[361718187,1747723837598,-254.35520314,0.00012,2]
[361718188,1747723837610,-422.09337938,0.00012,2]
[361718189,1747723837714,-1456.2075135,0.00012,2]
[361718404,1747723839874,-931.40501242,0.00012,2]
[361718407,1747723839887,-342.108,0.00012,2]
[361718420,1747723840017,-875.81996469,0.00012,2]
[361718422,1747723840029,-686.1,0.00012,2]
[361718423,1747723840041,-1202.799999,0.00012,2]
[361718682,1747723842642,-336569.54610635,0.00012,2]
[361718684,1747723842652,-376486.43048027,0.00012,2]
[361718971,1747723845604,-69305.1142362,0.00012,2]
[361718985,1747723845725,-8814.2400013,0.00012,2]
[361718999,1747723845850,-1000.0,0.00012,2]
[361720157,1747724279545,159.0,0.00022,120]
[361720163,1747724532148,457.94,9.327e-05,2]
[361720164,1747724578632,384.29,0.00011203,2]
[361720166,1747724681260,203.0,0.00010363,2]
[361720167,1747724919456,150.0,0.00013,5]
[361720168,1747724930710,150.0,0.0001116,7]
[361720169,1747725021584,23900.0,0.00011118,2]
[361720171,1747725031624,-164.86,0.00011348,2]
[361720172,1747725031634,-200.0,0.00011349,2]
[361720173,1747725031644,-200.0,0.0001135,2]
[361720175,1747725032057,-200.0,0.00011406,2]
[361720176,1747725032067,-166.38,0.00011539,2]
[361720177,1747725032077,-457.94,0.00011591,2]
[361720178,1747725032086,-250.0,0.00011761,2]
[361720179,1747725032096,-300.0,0.00011898,2]
[361720180,1747725032105,-1200.0,0.00011898,2]
[361720181,1747725032114,-300.0,0.00011898,2]
[361720182,1747725032124,-2600.804,0.00011899,2]
[361720183,1747725032134,-172.773,0.00011899,2]
[361720184,1747725032143,-5142.93833599,0.00011899,2]
[361720185,1747725032155,-43288.66826401,0.00011899,2]
[361720186,1747725032165,-3422.881,0.000119,2]
[361720187,1747725032174,-185.85009238,0.000119,2]
[361720188,1747725032184,-165.42045298,0.000119,2]
[361720189,1747725032195,-4135.58284015,0.000119,2]
[361720190,1747725032207,-10622.16061818,0.000119,2]
[361720191,1747725032219,-504.42,0.000119,2]
[361720192,1747725032238,-422.27161926,0.000119,2]
[361720193,1747725032249,-595.39054192,0.000119,2]
[361720194,1747725032261,-4873.03523845,0.000119,2]
[361720195,1747725032272,-1091.65558616,0.000119,2]
[361720196,1747725032284,-7538.41011593,0.000119,2]
[361720197,1747725032296,-3164.55524849,0.000119,2]
[361720198,1747725032307,-298.695,0.000119,2]
[361720199,1747725032319,-2840.47319302,0.000119,2]
[361720200,1747725032334,-331.26853685,0.000119,2]
[361720201,1747725032353,-5016.05705625,0.000119,2]
[361720202,1747725032365,-1399.93190357,0.000119,2]
[361720203,1747725032388,-542.468985,0.000119,2]
[361720204,1747725032400,-372.51000098,0.000119,2]
[361720205,1747725032412,-4450.00000001,0.000119,2]
[361720206,1747725032424,-831.68197868,0.000119,2]
[361720208,1747725037528,-308370.68055525,0.000119,2]
[361720209,1747725037540,-170.92280886,0.000119,2]
[361720210,1747725037550,-187.08023611,0.000119,2]
[361720211,1747725037560,-364.43182877,0.000119,2]
[361720212,1747725037569,-186.45876468,0.000119,2]
[361720213,1747725037579,-3731.859612,0.000119,2]
[361720214,1747725037588,-2635.59387172,0.000119,2]
[361720215,1747725037600,-1632.98765464,0.000119,2]
[361720216,1747725037611,-419.229999,0.000119,2]
[361720217,1747725037672,-4126.42847594,0.000119,2]
[361720218,1747725037682,-1000.0,0.00011941,2]
[361720219,1747725037692,-2238.0,0.00011973,2]
[361720220,1747725037703,-500.74484075,0.00011973,2]
[361720221,1747725037712,-501.58855612,0.00011973,2]
[361720222,1747725037722,-280.43518902,0.00011973,2]
[361720223,1747725037731,-500.9547635,0.00011973,2]
[361720224,1747725037741,-250.0,0.00011973,2]
[361720225,1747725037750,-500.0,0.00011973,2]
[361720226,1747725037760,-500.0,0.00011995,2]
[361720227,1747725037769,-500.0,0.00011995,2]
[361720228,1747725037779,-500.0,0.00011995,2]
[361720229,1747725037788,-500.0,0.00011995,2]
[361720230,1747725037798,-500.0,0.00011995,2]
[361720231,1747725037807,-500.0,0.00011995,2]
[361720232,1747725037816,-533.96299667,0.00011995,2]
[361720233,1747725037826,-500.0,0.00011995,2]
[361720234,1747725037836,-231.76326273,0.00012,2]
[361720235,1747725037845,-22499.91932631,0.00012,2]
[361720236,1747725037859,-177075.16756676,0.00012,2]
[361720239,1747725037877,-26535.93180847,0.00012,2]
[361720244,1747725039651,-2017.39933429,0.00012,2]
[361720245,1747725039800,-487.45,0.00012,2]
[361720246,1747725039811,-12500.0,0.00012,2]
[361720247,1747725039823,-341090.92352202,0.00012,2]
[361720249,1747725040203,-4357466.86707777,0.00012,2]
[361720250,1747725040216,-339854.53533936,0.00012,2]
[361720251,1747725040235,-9243.95423337,0.00012,2]
[361720252,1747725040254,-2210.72110966,0.00012,2]
[361720253,1747725040265,-609.5,0.00012,2]
[361720254,1747725040276,-2597.75,0.00012,2]
[361720258,1747725044702,-19621.88940995,0.00012,2]
[361720259,1747725044724,-22985.96120294,0.00012,2]
[361720260,1747725044736,-2239.10260521,0.00012,2]
[361720261,1747725044773,-432.06190101,0.00012,2]
[361720285,1747725046099,-72277.261195,0.00012,2]
[361720286,1747725046112,-1859.1,0.00012,2]
[361720287,1747725046127,-12936.5185532,0.00012,2]
[361720293,1747725282516,-214.15741439,0.00011212,2]
[361720294,1747725286187,-214.26258561,0.00011212,2]
[361720298,1747725350914,150.052011,0.000273,120]
[361720299,1747725351781,150.052011,0.000273,120]
[361720300,1747725352649,150.052011,0.000273,120]
[361720301,1747725353448,150.052011,0.000273,120]
[361720302,1747725354340,150.052011,0.000273,120]
[361720303,1747725355797,150.052011,0.000273,120]
[361720304,1747725356307,150.052011,0.000273,120]
[361720305,1747725367050,150.052011,0.000273,120]
[361720339,1747725542212,424.21,9.251e-05,2]
[361720340,1747725558439,1000.0,0.00011134,2]
[361720342,1747725615942,192.14,0.00011187,2]
[361720347,1747725964276,-215.1890897,0.00011428,2]
[361720348,1747725966344,-36.0002363,0.00011428,2]
[361720349,1747725966368,-236.2402624,0.00011457,2]
[361720350,1747725972801,-13.7597376,0.00011457,2]
[361720351,1747725972826,-200.0,0.00011486,2]
[361720352,1747725972848,-13.67136868,0.000115,2]
[361720353,1747725974438,-221.47930532,0.000115,2]
[361720355,1747726031639,203.0,0.00010875,2]
[361720362,1747726156350,150.0,0.00011047,7]
[361720374,1747726232195,-290.91999999,0.000115,2]
[361720375,1747726232208,-595.90960311,0.000115,2]
[361720377,1747726237861,-969.96186454,0.000115,2]
[361720378,1747726237873,-3660.87291007,0.000115,2]
[361720386,1747726239915,-0.63665253,0.000115,2]
[361720387,1747726239997,-640.70413307,0.000115,2]
[361720388,1747726240007,-200.0,0.00011504,2]
[361720389,1747726240016,-200.0,0.00011508,2]
[361720390,1747726240026,-250.0,0.00011508,2]
[361720391,1747726240035,-424.21,0.00011515,2]
[361720392,1747726240046,-1188.0,0.00011575,2]
[361720393,1747726240055,-1200.0,0.00011597,2]
[361720394,1747726240065,-300.0,0.00011601,2]
[361720395,1747726240074,-300.0,0.00011601,2]
[361720396,1747726240083,-1188.0,0.00011602,2]
[361720397,1747726240092,-1188.0,0.00011602,2]
[361720398,1747726240102,-821.02134133,0.00011602,2]
[361720399,1747726240111,-6363.21765503,0.00011617,2]
[361720400,1747726240120,-1425.78231,0.0001176,2]
[361720401,1747726240130,-315.53,0.00011774,2]
[361720402,1747726240139,-168.56,0.00011819,2]
[361720403,1747726240149,-2080.643,0.00011819,2]
[361720404,1747726240158,-172.773,0.00011819,2]
[361720405,1747726240167,-25000.77758886,0.00011845,2]
[361720406,1747726240177,-389.8778,0.000119,2]
[361720407,1747726240186,-185.85009238,0.000119,2]
[361720408,1747726240195,-170.92280886,0.000119,2]
[361720409,1747726240204,-366.58205782,0.000119,2]
[361720410,1747726240213,-187.08023611,0.000119,2]
[361720411,1747726240223,-643.74549932,0.000119,2]
[361720412,1747726240232,-507.28647287,0.00011973,2]
[361720413,1747726240241,-500.0,0.00011973,2]
[361720414,1747726240251,-500.0,0.00011973,2]
[361720415,1747726240260,-500.0,0.00011973,2]
[361720416,1747726240269,-3176.0,0.00011999,2]
[361720417,1747726240279,-240.46992259,0.00011999,2]
[361720418,1747726240288,-185.02814921,0.00011999,2]
[361720419,1747726240299,-448.21811074,0.00011999,2]
[361720420,1747726240308,-237835.47990694,0.00012,2]
[361720421,1747726240318,-231.76326273,0.00012,2]
[361720422,1747726240327,-4409062.26725193,0.00012,2]
[361720423,1747726240339,-1000.0,0.00012,2]
[361720424,1747726240349,-1056.0,0.00012,2]
[361720425,1747726240360,-234941.805,0.00012,2]
[361720426,1747726240390,-12350.16166381,0.00012,2]
[361720429,1747726242975,-650.0,0.00012,2]
[361720430,1747726242987,-1225.40449342,0.00012,2]
[361720431,1747726242998,-2493.1,0.00012,2]
[361720432,1747726243038,-770.69613598,0.00012,2]
[361720433,1747726243050,-610.98651663,0.00012,2]
[361720458,1747726245900,-90918.51639281,0.00012,2]
[361720459,1747726245987,-674.80710001,0.00012,2]
[361720460,1747726246076,-481.55999995,0.00012,2]
[361720461,1747726246088,-393.90300881,0.00012,2]
[361720909,1747726339772,-158.48380457,0.00011316,2]
[361720910,1747726446223,182.86857485,0.00010959,2]
[361720913,1747726566236,1000.0,0.00011118,2]
[361720914,1747726573564,184.54,0.00011129,2]
[361720915,1747726653691,-2.79619543,0.00011316,2]
[361720916,1747726653718,-2123.70263975,0.00011606,2]
[361720917,1747726653744,-200.0,0.00011683,2]
[361720918,1747726653769,-250.0,0.00011683,2]
[361720919,1747726653794,-1283.204079,0.0001176,2]
[361720920,1747726653820,-200.0,0.00011853,2]
[361720921,1747726653848,-294.0,0.00011899,2]
[361720922,1747726653872,-1200.0,0.00011899,2]
[361720923,1747726653899,-300.0,0.00011899,2]
[361720924,1747726653926,-426.42,0.000119,2]
[361720925,1747726653950,-1637.349,0.000119,2]
[361720926,1747726653974,-318.6395,0.000119,2]
[361720927,1747726653999,-173.22364019,0.000119,2]
[361720928,1747726654021,-366.58205782,0.000119,2]
[361720929,1747726654045,-159.06913594,0.000119,2]
[361720930,1747726654068,-187.08023611,0.000119,2]
[361720931,1747726654090,-643.74549932,0.000119,2]
[361720932,1747726654113,-170.99891018,0.00011973,2]
[361720933,1747726654135,-500.0,0.00011973,2]
[361720934,1747726654157,-500.0,0.00011973,2]
[361720935,1747726654179,-500.0,0.00011973,2]
[361720936,1747726654201,-507.28647287,0.00011973,2]
[361720937,1747726654229,-500.0,0.00011999,2]
[361720938,1747726654256,-500.0,0.00011999,2]
[361720939,1747726654286,-500.0,0.00011999,2]
[361720940,1747726654316,-500.0,0.00011999,2]
[361720941,1747726654347,-591.28535933,0.00011999,2]
[361720942,1747726654376,-500.0,0.00011999,2]
[361720943,1747726654405,-500.0,0.00011999,2]
[361720944,1747726654439,-500.0,0.00011999,2]
[361720945,1747726654470,-500.0,0.00011999,2]
[361720946,1747726654495,-231.76326273,0.00012,2]
[361720947,1747726654522,-287158.82718535,0.00012,2]
[361720948,1747726654549,-162633.86452371,0.00012,2]
[361720949,1747726654572,-50655.99,0.00012,2]
[361720950,1747726654596,-1000.0,0.00012,2]
[361720951,1747726654619,-1000.0,0.00012,2]
[361720952,1747726654642,-1000.0,0.00012,2]
[361720953,1747726654665,-1000.0,0.00012,2]
[361720954,1747726654688,-1000.0,0.00012,2]
[361720955,1747726654711,-1000.0,0.00012,2]
[361720956,1747726654734,-1000.0,0.00012,2]
[361720957,1747726654757,-1000.0,0.00012,2]
[361720958,1747726654780,-1000.0,0.00012,2]
[361720959,1747726654804,-1000.0,0.00012,2]
[361720960,1747726654829,-1000.0,0.00012,2]
[361720961,1747726654854,-1000.0,0.00012,2]
[361720962,1747726654878,-1000.0,0.00012,2]
[361720963,1747726654901,-1000.0,0.00012,2]
[361720964,1747726654926,-1000.0,0.00012,2]
[361720965,1747726654950,-1000.0,0.00012,2]
[361720966,1747726654975,-1000.0,0.00012,2]
[361720967,1747726654998,-1000.0,0.00012,2]
[361720968,1747726655022,-1000.0,0.00012,2]
[361720969,1747726655046,-1000.0,0.00012,2]
[361720970,1747726655072,-1000.0,0.00012,2]
[361720971,1747726655096,-1000.0,0.00012,2]
[361720972,1747726655121,-1000.0,0.00012,2]
[361720973,1747726655146,-1000.0,0.00012,2]
[361720974,1747726655172,-1000.0,0.00012,2]
[361720975,1747726655196,-1000.0,0.00012,2]
[361720976,1747726655222,-1000.0,0.00012,2]
[361720977,1747726655246,-1000.0,0.00012,2]
[361720978,1747726655270,-1000.0,0.00012,2]
[361720979,1747726655295,-1000.0,0.00012,2]
[361720980,1747726655318,-844.50958474,0.00012,2]
[361720981,1747726655344,-456777.62071753,0.00012,2]
[361720982,1747726655507,-1004837.958,0.00012,2]
[361720983,1747726655996,-1004837.958,0.00012,2]
[361720984,1747726657058,-1004837.958,0.00012,2]
[361720985,1747726658363,-1004837.958,0.00012,2]
[361720986,1747726836908,192.14,0.00011153,2]
[361720987,1747726880443,484.26,9.207e-05,2]
[361720996,1747727141506,700.0,0.00027397,120]
[361720997,1747727141750,700.0,0.00027397,120]
[361720998,1747727142000,700.0,0.00027397,120]
[361720999,1747727142233,700.0,0.00027397,120]
[361721000,1747727142462,700.0,0.00027397,120]
[361721001,1747727142699,700.0,0.00027397,120]
[361721002,1747727142959,700.0,0.00027397,120]
[361721003,1747727143201,471.38949269,0.00027397,120]
[361721004,1747727216240,-193.50068686,0.0001147,2]
[361721005,1747727230311,168.56,0.00011193,2]
[361721006,1747727336624,150.0,0.00011157,7]
[361721007,1747727356038,342.73,0.00011157,2]
[361721010,1747727386138,-200.0,0.00011233,2]
[361721011,1747727388818,-162.5002564,0.00011233,2]
[361721014,1747727392756,-245.14006397,0.00011233,2]
[361721015,1747727397736,-229.37873128,0.00011233,2]
[361721018,1747727400567,-208.72747989,0.00011233,2]
[361721019,1747727401799,245.14006397,0.00010959,2]
[361721020,1747727405177,-347.64057054,0.00011233,2]
[361721021,1747727408428,-295.29682209,0.00011233,2]
[361721022,1747727411164,-164.26076236,0.00011233,2]
[361721023,1747727412714,-285.73923764,0.00011233,2]
[361721024,1747727415423,-165.5822956,0.00011233,2]
[361721025,1747727416951,-195.33088231,0.00011233,2]
[361721026,1747727420222,-197.47902788,0.00011233,2]
[361721028,1747727431985,-676.59387004,0.00011233,2]
[361721029,1747727431996,-250.0,0.00011352,2]
[361721030,1747727432007,-290.75931314,0.0001147,2]
[361721031,1747727432017,-200.0,0.00011499,2]
[361721032,1747727432026,-135.47791482,0.00011586,2]
[361721033,1747727432039,-114.52208518,0.00011586,2]
[361721034,1747727432049,-1490.88164134,0.00011606,2]
[361721035,1747727432059,-864.76119748,0.00011662,2]
[361721036,1747727432069,-1200.0,0.00011758,2]
[361721037,1747727432079,-300.0,0.00011759,2]
[361721038,1747727432091,-2226.208,0.0001176,2]
[361721039,1747727432109,-172.525,0.0001176,2]
[361721040,1747727432125,-1154.883671,0.0001176,2]
[361721041,1747727432137,-279.65,0.0001177,2]
[361721042,1747727432146,-203.0,0.00011788,2]
[361721043,1747727432156,-164.63911965,0.000119,2]
[361721044,1747727432166,-159.0691359,0.000119,2]
[361721045,1747727432178,-712.05102558,0.000119,2]
[361721046,1747727432189,-244.38803854,0.000119,2]
[361721047,1747727432198,-458.06,0.000119,2]
[361721048,1747727432208,-150.0,0.000119,2]
[361721049,1747727432218,-712.05102549,0.00011911,2]
[361721050,1747727432228,-712.05102549,0.00011922,2]
[361721051,1747727432239,-712.05102549,0.00011933,2]
[361721052,1747727432248,-712.05102549,0.00011944,2]
[361721053,1747727432258,-712.05102549,0.00011956,2]
[361721054,1747727432268,-712.05102549,0.00011967,2]
[361721055,1747727432277,-500.0,0.00011973,2]
[361721056,1747727432287,-500.0,0.00011973,2]
[361721057,1747727432297,-712.05102549,0.00011978,2]
[361721058,1747727432307,-712.05102549,0.00011989,2]
[361721059,1747727432316,-29410.22420068,0.00011991,2]
[361721060,1747727432349,-545.44642781,0.00011991,2]
[361721061,1747727432360,-887.09610026,0.00011991,2]
[361721062,1747727432379,-350.0,0.00011991,2]
[361721063,1747727432404,-3709.52823756,0.00011991,2]
[361721064,1747727432415,-525.97462945,0.00011991,2]
[361721066,1747727432428,-4461.758199,0.00011991,2]
[361721068,1747727432440,-1462.76890782,0.00011991,2]
[361721070,1747727432451,-11790.33694172,0.00011991,2]
[361721072,1747727432461,-195.0218078,0.00011991,2]
[361721074,1747727432471,-2023.670581,0.00011991,2]
[361721076,1747727432481,-510.1428177,0.00011991,2]
[361721078,1747727432490,-37629.82454778,0.00011992,2]
[361721111,1747727437949,-3439.0,0.00011992,2]
[361721112,1747727438000,-1240.07,0.00011992,2]
[361721113,1747727438012,-4874.37586452,0.00011992,2]
[361721114,1747727438021,-41223.4071803,0.00011992,2]
[361721115,1747727438031,-35263.5439484,0.00011992,2]
[361721116,1747727438041,-195.0218078,0.00011992,2]
[361721117,1747727438050,-195.0218078,0.00011992,2]
[361721118,1747727438060,-195.0218078,0.00011992,2]
[361721119,1747727438070,-1870.3860649,0.00011992,2]
[361721120,1747727438079,-1717.1015487,0.00011992,2]
[361721121,1747727438089,-1563.8170326,0.00011992,2]
[361721122,1747727438105,-43111.9017227,0.00011999,2]
[361721123,1747727438144,-3229.23732841,0.00011999,2]
[361721129,1747727440137,-596.76669111,0.00011999,2]
[361721130,1747727440150,-1457.6804305,0.00011999,2]
[361721131,1747727440270,-0.00435703,0.00011999,2]
[361721132,1747727440368,-25690.02145178,0.00011999,2]
[361721133,1747727440377,-240.46992259,0.00011999,2]
[361721134,1747727440386,-185.02814921,0.00011999,2]
[361721135,1747727440395,-877455.79638276,0.00012,2]
[361721136,1747727440403,-3600727.93416848,0.00012,2]
[361721137,1747727440412,-66099.08899446,0.00012,2]
[361721138,1747727440422,-187.22780932,0.00012,2]
[361721139,1747727440430,-500.0,0.00012,2]
[361721140,1747727440441,-7461.31,0.00012,2]
[361721141,1747727440449,-5284.11,0.00012,2]
[361721142,1747727440458,-150.99,0.00012,2]
[361721143,1747727440466,-487.79,0.00012,2]
[361721144,1747727440475,-299.99,0.00012,2]
[361721145,1747727440484,-150.99,0.00012,2]
[361721146,1747727440493,-70209.8246929,0.00012,2]
[361721147,1747727440503,-1490.88164134,0.00012,2]
[361721148,1747727440519,-92857.27366576,0.00012,2]
[361721149,1747727440527,-416.07,0.00012,2]
[361721150,1747727440537,-923.31,0.00012,2]
[361721151,1747727440547,-176.67976169,0.00012,2]
[361721152,1747727440553,-819.23,0.00012,2]
[361721153,1747727440560,-162.78,0.00012,2]
[361721154,1747727440567,-170.08,0.00012,2]
[361721156,1747727440576,-2107.35,0.00012,2]
[361721157,1747727440585,-458.06,0.00012,2]
[361721159,1747727440592,-1210.53,0.00012,2]
[361721160,1747727440599,-480.89,0.00012,2]
[361721161,1747727440606,-458.06,0.00012,2]
[361721162,1747727440613,-712.05102549,0.00012,2]
[361721163,1747727440620,-912.0,0.00012034,2]
[361721164,1747727440628,-437.0,0.00012043,2]
[361721165,1747727440636,-23900.0,0.00012066,2]
[361721166,1747727440643,-250.0,0.000121,2]
[361721167,1747727440649,-250.0,0.000121,2]
[361721168,1747727440657,-250.0,0.000121,2]
[361721169,1747727440664,-250.0,0.000121,2]
[361721170,1747727440673,-250.0,0.000121,2]
[361721171,1747727440681,-250.0,0.000121,2]
[361721172,1747727440692,-250.0,0.000121,2]
[361721173,1747727440700,-327.8,0.000121,2]
[361721174,1747727440709,-340.14,0.000121,2]
[361721175,1747727440718,-162.76,0.000121,2]
[361721176,1747727440727,-458.06,0.000121,2]
[361721177,1747727440736,-162.76,0.000121,2]
[361721178,1747727440746,-795.22,0.000121,2]
[361721180,1747727440755,-162.76,0.000121,2]
[361721181,1747727440765,-457.84,0.000121,2]
[361721182,1747727440774,-353.24,0.000121,2]
[361721183,1747727440784,-500.0,0.000121,2]
[361721184,1747727440793,-689.0,0.000121,2]
[361721185,1747727440803,-150.39039728,0.00012109,2]
[361721186,1747727440812,-150.0,0.00012109,2]
[361721187,1747727440823,-150.0,0.00012109,2]
[361721188,1747727440832,-150.0,0.00012109,2]
[361721189,1747727440842,-500.0,0.00012127,2]
[361721190,1747727440852,-689.0,0.00012127,2]
[361721191,1747727440861,-500.0,0.00012155,2]
[361721192,1747727440870,-689.0,0.00012155,2]
[361721193,1747727440879,-500.0,0.00012182,2]
[361721194,1747727440888,-689.0,0.00012182,2]
[361721195,1747727440898,-500.0,0.00012192,2]
[361721196,1747727440907,-500.0,0.0001221,2]
[361721197,1747727440916,-689.0,0.0001221,2]
[361721198,1747727440925,-799.0,0.0001222,2]
[361721199,1747727440935,-6832.0,0.0001222,2]
[361721200,1747727440945,-838.0,0.0001222,2]
[361721201,1747727440955,-4045.0,0.0001222,2]
[361721202,1747727440963,-154.0,0.0001222,2]
[361721203,1747727440973,-880.0,0.0001222,2]
[361721204,1747727440984,-500.0,0.00012237,2]
[361721205,1747727440995,-689.0,0.00012237,2]
[361721206,1747727441005,-500.0,0.00012264,2]
[361721207,1747727441015,-689.0,0.00012264,2]
[361721208,1747727441025,-500.0,0.00012292,2]
[361721209,1747727441034,-689.0,0.00012292,2]
[361721210,1747727441044,-150.32,0.000123,2]
[361721211,1747727441053,-353.24,0.000123,2]
[361721212,1747727441063,-150.32,0.000123,2]
[361721213,1747727441073,-150.32,0.000123,2]
[361721214,1747727441083,-500.0,0.00012319,2]
[361721215,1747727441094,-689.0,0.00012319,2]
[361721216,1747727441108,-178.47856135,0.00012329,2]
[361721217,1747727441118,-500.0,0.00012347,2]
[361721218,1747727441127,-689.0,0.00012347,2]
[361721219,1747727441139,-200.0,0.00012356,2]
[361721220,1747727441149,-250.0,0.00012356,2]
[361721221,1747727441158,-500.0,0.00012374,2]
[361721222,1747727441170,-689.0,0.00012374,2]
[361721223,1747727441179,-150.32,0.000124,2]
[361721224,1747727441189,-689.0,0.00012401,2]
[361721225,1747727441199,-689.0,0.00012429,2]
[361721226,1747727441210,-689.0,0.00012456,2]
[361721227,1747727441220,-155.0,0.00012458,2]
[361721228,1747727441230,-151.0,0.00012458,2]
[361721229,1747727441241,-668.65185757,0.00012458,2]
[361721230,1747727441251,-719.52358209,0.00012458,2]
[361721231,1747727441272,-423.0315306,0.00012458,2]
[361721232,1747727441285,-207.4,0.00012458,2]
[361721233,1747727441294,-689.0,0.00012484,2]
[361721234,1747727441304,-29303.6807164,0.00012491,2]
[361721235,1747727441314,-162.9,0.000125,2]
[361721236,1747727441324,-150.0,0.000125,2]
[361721237,1747727441334,-297.89607841,0.000125,2]
[361721238,1747727441343,-306.47,0.000125,2]
[361721239,1747727441353,-306.47,0.000125,2]
[361721240,1747727441363,-306.47,0.000125,2]
[361721241,1747727441373,-306.47,0.000125,2]
[361721242,1747727441383,-306.47,0.000125,2]
[361721243,1747727441394,-306.47,0.000125,2]
[361721244,1747727441404,-306.47,0.000125,2]
[361721245,1747727441413,-306.47,0.000125,2]
[361721246,1747727441423,-306.47,0.000125,2]
[361721247,1747727441433,-306.47,0.000125,2]
[361721248,1747727441444,-306.47,0.000125,2]
[361721249,1747727441454,-306.47,0.000125,2]
[361721250,1747727441463,-306.47,0.000125,2]
[361721251,1747727441474,-306.47,0.000125,2]
[361721252,1747727441484,-306.47,0.000125,2]
[361721253,1747727441494,-306.47,0.000125,2]
[361721254,1747727441504,-306.47,0.000125,2]
[361721255,1747727441516,-306.47,0.000125,2]
[361721256,1747727441527,-306.47,0.000125,2]
[361721257,1747727441537,-306.47,0.000125,2]
[361721258,1747727441547,-306.47,0.000125,2]
[361721259,1747727441559,-306.47,0.000125,2]
[361721260,1747727441569,-306.47,0.000125,2]
[361721261,1747727441581,-306.47,0.000125,2]
[361721262,1747727441591,-306.47,0.000125,2]
[361721263,1747727441600,-306.47,0.000125,2]
[361721264,1747727441610,-306.47,0.000125,2]
[361721265,1747727441621,-306.47,0.000125,2]
[361721266,1747727441631,-306.47,0.000125,2]
[361721267,1747727441642,-306.47,0.000125,2]
[361721268,1747727441653,-306.47,0.000125,2]
[361721269,1747727441664,-306.47,0.000125,2]
[361721270,1747727441675,-306.47,0.000125,2]
[361721271,1747727441685,-306.47,0.000125,2]
[361721272,1747727441702,-306.47,0.000125,2]
[361721273,1747727441712,-306.47,0.000125,2]
[361721274,1747727441722,-306.47,0.000125,2]
[361721275,1747727441732,-306.47,0.000125,2]
[361721276,1747727441742,-306.47,0.000125,2]
[361721277,1747727441751,-306.47,0.000125,2]
[361721278,1747727441762,-306.47,0.000125,2]
[361721279,1747727441772,-306.47,0.000125,2]
[361721280,1747727441782,-306.47,0.000125,2]
[361721281,1747727441792,-306.47,0.000125,2]
[361721282,1747727441802,-306.47,0.000125,2]
[361721283,1747727441813,-306.47,0.000125,2]
[361721284,1747727441823,-306.47,0.000125,2]
[361721285,1747727441833,-306.47,0.000125,2]
[361721286,1747727441843,-306.47,0.000125,2]
[361721287,1747727441854,-306.47,0.000125,2]
[361721288,1747727441864,-306.47,0.000125,2]
[361721289,1747727441874,-306.47,0.000125,2]
[361721290,1747727441884,-306.47,0.000125,2]
[361721291,1747727441894,-306.47,0.000125,2]
[361721292,1747727441905,-306.47,0.000125,2]
[361721293,1747727441916,-306.47,0.000125,2]